Cogmind - Beta 11.1 @@@ ROGUE MODE // 2022.05.12 @ 14:19:40 Player: kway_side Result: Self-destructed Performance ------------- Evolutions (2) 1000 Regions Visited (5) 1000 Robots Destroyed (55) 275 Value Destroyed (1288) 1288 Prototype IDs (4) 80 Alien Tech Used (0) 0 Bonus (300) 300 TOTAL SCORE: 3943 Bonus ------- Aligned with FarCom 300 Cogmind --------- Core Integrity 31/550 Matter 300/300 Energy 100/100 System Corruption 2% Temperature Cool (0) Movement Core (350) Ox6 Location -8/Materials Parts ------- > --- POWER (1) -------- (None) > --- PROPULSION (3) --- (None) > --- UTILITY (5) ------ Large Storage Unit Terrain Scan Processor 0b10 Alert Chip Utility Shielding System Shield > --- WEAPON (2) ------- (None) > --- INVENTORY (15) --- Light Nuclear Core Aerolev Unit Improved Flight Unit Improved Heat Sink Hacking Suite Improved EM Shotgun Improved EM Shotgun Shock Rifle Ion Cannon Peak State ------------ > --- POWER ------------ (None) > --- PROPULSION ------- Carbon-fiber Leg Carbon-fiber Leg Carbon-fiber Leg > --- UTILITY ---------- Large Storage Unit Terrain Scan Processor 0b10 Alert Chip Heavy Armor Plating > --- WEAPON ----------- Rocket Launcher Heavy Flail > --- INVENTORY -------- Compact Wheel Improved Flight Unit Cesium-ion Thruster Cesium-ion Thruster Improved Heat Sink Structural Scanner Utility Shielding Hacking Suite EM Pulse Cannon [Rating: 31] Favorites ----------- Power Ion Engine Engine Ion Engine Power Core Light Nuclear Core Propulsion Light Treads Treads Light Treads Leg Carbon-fiber Leg Wheel Compact Wheel Hover Unit Aerolev Unit Flight Unit Cesium-ion Thruster Utility Large Storage Unit Device Structural Scanner Storage Large Storage Unit Processor 0b10 Alert Chip Hackware System Shield Protection Utility Shielding Weapon Small Laser Energy Gun Small Laser Energy Cannon EM Pulse Cannon Ballistic Gun Light Assault Rifle Launcher Grenade Launcher Special Weapon Mining Laser Impact Weapon Heavy Flail Build | -11 -10 -10 -10 -9 -8 ------- Run | Scr Mat Min Exi Min Mat Slots Evolved 4 | . . . . . 4 Power . | . . . . . . Propulsion 1 | . . . . . 1 Utility 3 | . . . . . 3 Weapon . | . . . . . . Parts Attached 62 | . 17 2 . 2 41 Power 9 | . 3 1 . . 5 Engine 8 | . 3 1 . . 4 Core 1 | . . . . . 1 Reactor . | . . . . . . Propulsion 21 | . 5 . . 1 15 Treads 7 | . 5 . . 1 1 Leg 8 | . . . . . 8 Wheel 1 | . . . . . 1 Hover 1 | . . . . . 1 Flight 4 | . . . . . 4 Utility 16 | . 6 1 . . 9 Device 6 | . 3 1 . . 2 Storage 2 | . 2 . . . . Processor 2 | . . . . . 2 Hackware 1 | . . . . . 1 Protection 5 | . 1 . . . 4 Artifact . | . . . . . . Weapon 16 | . 3 . . 1 12 Energy Gun 5 | . 2 . . . 3 Energy Cannon 1 | . . . . . 1 Ballistic Gun 1 | . 1 . . . . Ballistic Cannon . | . . . . . . Launcher 5 | . . . . 1 4 Special Weapon 2 | . . . . . 2 Impact Weapon 2 | . . . . . 2 Slashing Weapon . | . . . . . . Piercing Weapon . | . . . . . . Special Melee Weapon . | . . . . . . Unidentified Prototypes 2 | . . . . . 2 Parts Lost 28 | . . 2 . . 26 Power 5 | . . 1 . . 4 Propulsion 9 | . . . . . 9 Utility 4 | . . . . . 4 Weapon 10 | . . 1 . . 9 Highest Loss Streak 12 | . . 2 . . 12 To Critical Strikes . | . . . . . . Average Slot Usage (%) 93 | . 98 96 85 100 89 Engine 11 | . 14 13 14 14 6 Treads 15 | . 16 28 28 28 2 Leg 9 | . 11 . . . 17 Flight 1 | . . . . . 4 Device 11 | . 8 14 14 14 12 Storage 12 | . 14 14 14 14 9 Processor 6 | . . . . . 17 Protection 2 | . 3 . . . 4 Energy Gun 13 | . 22 24 14 14 2 Ballistic Gun 1 | . 5 . . . . Launcher 3 | . . . . 14 5 Naked Turns . | . . . . . . Heaviest Build 44 | 10 30 30 27 30 44 Greatest Support 60 | 20 40 40 40 40 60 Greatest Overweight (x) 9 | . . . . . 9 Average Overweight (x) . | . . . . . . Largest Inventory Capacity 15 | . 15 15 15 15 15 Average Capacity 14 | . 12 15 15 15 15 Most Carried 15 | . 15 15 15 15 15 Average Carried 12 | . 10 14 14 14 13 Final Capacity 15 | 8 15 15 15 15 15 Final Carried 15 | 6 15 15 15 15 9 Class Distribution -------------------- 88% | Mutant 7% | Scavenger-Mutant 3% | Assassin Dominant Class ---------------- Mutant | -10/Materials Scavenger-Mutant | -10/Mines Mutant | -10/Exiles Mutant | -9/Mines Mutant | -8/Materials Resources | -11 -10 -10 -10 -9 -8 ----------- Run | Scr Mat Min Exi Min Mat Matter Collected 1058 | 168 182 60 . 72 576 Remotely . | . . . . . . Salvage Created 1199 | . 447 25 . 75 652 Parts 91 | . 33 1 . 18 39 Haulers Intercepted 2 | . 2 . . . . Recyclers Shooed 2 | . . . . . 2 Parts Field Recycled . | . . . . . . Retrieved Matter . | . . . . . . Parts Self-Destructed . | . . . . . . Prevented . | . . . . . . Kills | -11 -10 -10 -10 -9 -8 ------- Run | Scr Mat Min Exi Min Mat Combat Hostiles Destroyed 45 | . 10 2 . 11 22 Melee 3 | . 1 . . . 2 Guns 12 | . 9 1 . . 2 AOE 26 | . . . . 11 15 Classes Destroyed 12 | . 4 2 . . 6 Worker 1 | . . 1 . . . Builder 4 | . . . . . 4 Hauler 2 | . 2 . . . . Recycler 2 | . . . . . 2 Operator 2 | . 1 . . . 1 Watcher 1 | . . . . . 1 Swarmer 22 | . 3 . . 11 8 Grunt 16 | . 7 . . . 9 Sentry 3 | . . . . . 3 Specialist 1 | . . . . . 1 Hunter 1 | . . . . . 1 Assembled 2 | . . 2 . . . Best Kill Streak 8 | . 3 3 . 4 8 Combat Bots Only 6 | . 3 2 . 4 6 Max Kills in Single Turn 4 | . 1 1 . 4 3 Gunslinging . | . . . . . . Exploded 4 | . . . . 4 3 Melee 1 | . 1 . . . 1 Uniques/NPCs Destroyed . | . . . . . . Combat | -11 -10 -10 -10 -9 -8 -------- Run | Scr Mat Min Exi Min Mat Damage Taken 3946 | . 576 276 . 124 2970 Core 737 | . 125 83 . 10 519 Absorbed by Shields . | . . . . . . Redirected to Shielding 37 | . 8 . . . 29 Core Remaining (%) 56 | 100 . . . 12 . Volleys Fired 118 | . 53 7 . 4 54 Largest 2 | . 2 2 . 1 1 Hottest 105 | . 105 105 . 30 100 Shots Fired 173 | . 106 9 . 4 54 Gun 132 | . 106 9 . . 17 Cannon . | . . . . . . Launcher 31 | . . . . 4 27 Special 10 | . . . . . 10 Kinetic 20 | . 20 . . . . Thermal 120 | . 86 9 . . 25 Explosive 31 | . . . . 4 27 Electromagnetic 2 | . . . . . 2 Robot Hit Streak 11 | . 11 3 . . 10 Robot Miss Streak 3 | . 2 1 . . 3 Penetration Max . | . . . . . . Secondary Targets . | . . . . . . Shots Hit Robots 125 | . 76 5 . . 44 Core Hits 92 | . 26 2 . 10 54 Critical Kills . | . . . . . . Critical Parts Destroyed 4 | . . . . . 4 Critical Strikes 5 | . . 1 . . 4 Burn 1 | . . 1 . . . Smash 4 | . . . . . 4 Melee Attacks 29 | . . . . . 29 Impact 29 | . . . . . 29 Slashing . | . . . . . . Piercing . | . . . . . . Sneak Attacks 2 | . . . . . 2 Combat Hostiles . | . . . . . . Follow-up Attacks . | . . . . . . Damage Inflicted 4209 | . 819 68 . 431 2891 Guns 1031 | . 815 63 . . 153 Cannons . | . . . . . . Explosions 2424 | . . . . 431 1993 Melee 691 | . . . . . 691 Ramming 39 | . 4 5 . . 30 Kinetic 129 | . 129 . . . . Thermal 891 | . 686 63 . . 142 Explosive 2424 | . . . . 431 1993 Electromagnetic 35 | . . . . . 35 Impact 691 | . . . . . 691 Slashing . | . . . . . . Piercing . | . . . . . . Highest Corruption 2 | . . 2 2 2 2 Average Corruption 2 | . . 2 2 2 2 Corruption Purged . | . . . . . . Corruption Blocked . | . . . . . . Effects 16 | . . 1 7 8 . Message Errors 4 | . . . 2 2 . Matter Fused 6 | . . . 3 3 . Energy Discharges 1 | . . . 1 . . Data Loss (minor) 2 | . . . . 2 . Data Loss (major) 2 | . . . 1 1 . Misfires 1 | . . 1 . . . Overload Shots . | . . . . . . Overflow Damage 331 | . . . . 10 321 Projectiles . | . . . . . . Explosions 109 | . . . . 10 99 Melee 222 | . . . . . 222 Knockbacks 2 | . . . . . 2 Impact 2 | . . . . . 2 Kinetic . | . . . . . . Secondary . | . . . . . . Self-Inflicted Damage 208 | . . . . 20 188 Shots 10 | . . . . 1 9 Rammed 4 | . . 2 . . 2 Targets Rammed 13 | . 2 3 . . 8 Kicked 7 | . 1 . . . 6 Crushed 2 | . 1 1 . . . Highest Temperature 66 | . 66 35 . . 54 Average Temperature 19 | . 21 14 . . 16 Received Heat Transfer 1398 | . 261 . . . 1137 Siege Activations . | . . . . . . Robots Corrupted . | . . . . . . Combat Hostiles . | . . . . . . Parts Fried 6 | . . . . . 6 Impact Corruptions 12 | . . 1 . . 11 Robots Melted . | . . . . . . Combat Hostiles . | . . . . . . Parts Melted 2 | . 1 . . . 1 Heat Transferred 2086 | . 1550 211 . . 325 Parts Sabotaged . | . . . . . . Parts Stolen . | . . . . . . Parts Stripped . | . . . . . . Power Chain Reactions . | . . . . . . Missiles Intercepted . | . . . . . . Alert | -11 -10 -10 -10 -9 -8 ------- Run | Scr Mat Min Exi Min Mat Peak Influence 235 | . 235 25 . 202 213 Initial 41 | . . 25 . . 41 Average 91 | . 60 21 . 143 116 Maximum Alert Level 1 | . 1 . . 1 1 Low Security (%) 87 | . 96 100 . 38 95 Level 1 12 | . 3 . . 61 4 Level 2 . | . . . . . . Level 3 . | . . . . . . Level 4 . | . . . . . . Level 5 . | . . . . . . High Security . | . . . . . . Max Security . | . . . . . . Squads Dispatched 12 | . 3 1 . . 8 Investigation 5 | . 2 1 . . 2 Extermination . | . . . . . . Reinforcement 7 | . 1 . . . 6 Assault . | . . . . . . Garrison . | . . . . . . Intercept . | . . . . . . Searches Triggered . | . . . . . . Construction Impeded 3 | . . . . . 3 Haulers Reinforced . | . . . . . . Active Scanning Responses . | . . . . . . Cargo Convoy Interrupts . | . . . . . . Stealth | -11 -10 -10 -10 -9 -8 --------- Run | Scr Mat Min Exi Min Mat Distress Signals 8 | . 2 . . . 6 Communications Jammed . | . . . . . . Distress Signals . | . . . . . . Times Spotted 86 | . 28 2 . 11 45 Peak Tracking Total 8 | . 5 1 . 4 8 Tactical Retreats 5 | . 2 . . . 3 Traps | -11 -10 -10 -10 -9 -8 ------- Run | Scr Mat Min Exi Min Mat Traps Triggered 2 | . 1 . . . 1 Indirectly . | . . . . . . Trap Hack Attempts . | . . . . . . Triggered . | . . . . . . Disarmed . | . . . . . . Reprogrammed . | . . . . . . Reused . | . . . . . . Traps Extracted . | . . . . . . Installed . | . . . . . . Triggered . | . . . . . . Machines | -11 -10 -10 -10 -9 -8 ---------- Run | Scr Mat Min Exi Min Mat Machines Disabled 4 | . . . . . 4 Max in Single Turn 1 | . . . . . 1 Machines Sabotaged . | . . . . . . Garrisons Compromised . | . . . . . . Overloaded Fab Kills . | . . . . . . Hacking | -11 -10 -10 -10 -9 -8 --------- Run | Scr Mat Min Exi Min Mat Machines Accessed 14 | . 6 1 . 1 6 Terminals 11 | . 5 . . 1 5 Fabricators . | . . . . . . Repair Stations . | . . . . . . Recycling Units 1 | . 1 . . . . Scanalyzers . | . . . . . . Garrison Access 1 | . . . . . 1 Total Hacks 38 | . 18 1 . 3 16 Successful 16 | . 8 1 . 1 6 Failed 22 | . 10 . . 2 10 Catastrophic 1 | . . . . . 1 Database Lockouts . | . . . . . . Manual 28 | . 9 . 1 3 15 Terminals 34 | . 17 . . 3 14 Fabricators . | . . . . . . Repair Stations . | . . . . . . Recycling Units 1 | . 1 . . . . Scanalyzers . | . . . . . . Garrison Access 2 | . . . . . 2 Terminal Hacks 12 | . 6 1 . 1 4 Record 1 | . 1 . . . . Part Schematic 1 | . . . . . 1 Robot Analysis 4 | . 3 . . . 1 Prototype ID Bank 1 | . . . . 1 . Open Door 1 | . . 1 . . . Branch Access Points 1 | . 1 . . . . Fabricator Index 1 | . . . . . 1 Hauler Manifests 2 | . 1 . . . 1 Fabricator Hacks . | . . . . . . Repair Station Hacks . | . . . . . . Recycling Unit Hacks 1 | . 1 . . . . Report Inventory 1 | . 1 . . . . Scanalyzer . | . . . . . . Garrison Access Hacks . | . . . . . . Unauthorized Hacks 3 | . 1 . . . 2 Terminals 3 | . 1 . . . 2 Assimilate 1 | . . . . . 1 Operators 2 | . 1 . . . 1 Fabricators . | . . . . . . Repair Stations . | . . . . . . Recycling Units . | . . . . . . Scanalyzers . | . . . . . . Garrison Access . | . . . . . . Data Cores Recovered . | . . . . . . Used . | . . . . . . Hacking Detections 12 | . 5 . . 1 6 Full Trace Events 2 | . 1 . . . 1 Feedback Events . | . . . . . . Feedback Blocked . | . . . . . . Robot Schematics Acquired . | . . . . . . Robots Built . | . . . . . . Authchips . | . . . . . . Time . | . . . . . . Total Robot Build Rating . | . . . . . . Part Schematics Acquired 1 | . . . . . 1 Parts Built . | . . . . . . Authchips . | . . . . . . Time . | . . . . . . Total Part Build Rating . | . . . . . . Parts Repaired . | . . . . . . Time . | . . . . . . Parts Recycled . | . . . . . . Recycled Matter . | . . . . . . Retrieved Matter . | . . . . . . Retrieved Components . | . . . . . . Parts Scanalyzed . | . . . . . . Part Schematics Acquired . | . . . . . . Parts Damaged . | . . . . . . Bothacking | -11 -10 -10 -10 -9 -8 ------------ Run | Scr Mat Min Exi Min Mat Used RIF Installer . | . . . . . . Robots Hacked . | . . . . . . Non-combat . | . . . . . . Combat . | . . . . . . Robot Hacks Applied . | . . . . . . Relay Couplers Released . | . . . . . . Fabnet Peak Effective % . | . . . . . . Robots Rewired . | . . . . . . Allies Hacked . | . . . . . . Hacks Repelled . | . . . . . . Allies | -11 -10 -10 -10 -9 -8 -------- Run | Scr Mat Min Exi Min Mat Total Allies . | . . . . . . Largest Group . | . . . . . . Highest-Rated Group . | . . . . . . Highest-Rated Ally . | . . . . . . Total Orders . | . . . . . . Ally Attacks . | . . . . . . Total Damage . | . . . . . . Kills . | . . . . . . Allies Corrupted . | . . . . . . Allies Melted . | . . . . . . Intel | -11 -10 -10 -10 -9 -8 ------- Run | Scr Mat Min Exi Min Mat Robot Analysis Total 4 | . 3 . . . 1 Derelict Logs Recovered 2 | . . 1 . 1 . Drone Launches . | . . . . . . Drone Recoveries . | . . . . . . Exploration | -11 -10 -10 -10 -9 -8 ------------- Run | Scr Mat Min Exi Min Mat Turns Passed 4773 | . 1443 401 581 601 1747 Spaces Moved 2608 | 1 734 233 363 357 920 Core 3 | . . . . . 3 Treads 1501 | . 440 233 363 357 108 Legs 938 | 1 294 . . . 643 Wheels 25 | . . . . . 25 Hover . | . . . . . . Flight 141 | . . . . . 141 Fastest Speed 106 | 120 120 160 160 160 106 Average Speed 147 | 120 143 160 160 160 136 Slowest Speed 500 | 120 160 160 160 160 500 Overloaded Moves . | . . . . . . Propulsion Burnouts . | . . . . . . Robots Hopped . | . . . . . . Cave-ins Triggered 1 | . . 1 . . . Exploration Rate (%) 57 | 2 92 60 63 78 52 Regions Visited 5 Branch Regions 3 Pre-discovered Areas 1 | . . 1 . . . Known Exits Taken 1 | . 1 . . . . Unknown Exits Taken 4 | 1 . 1 1 1 . Scrap Searched 1 | . . . . 1 . Spaces Dug 26 | . . . . 7 19 Terrain Destroyed 183 | . . . . 21 162 Melee . | . . . . . . Projectile 8 | . . . . . 8 AOE 175 | . . . . 21 154 Terrain Rammed . | . . . . . . Walls Destroyed . | . . . . . . Machines Disabled . | . . . . . . Actions | -11 -10 -10 -10 -9 -8 --------- Run | Scr Mat Min Exi Min Mat Total 3308 | . 1019 253 364 383 1289 Wait 396 | . 184 . . 18 194 Move 2603 | . 733 232 362 356 920 Hop . | . . . . . . Pick Up 47 | . 16 5 1 2 23 Fast Attach 10 | . 2 . . . 8 Attach 29 | . 2 1 . 1 25 Detach 5 | . . . . . 5 Swap 23 | . 13 1 . 1 8 Drop 35 | . 14 4 1 1 15 Fire 118 | . 53 7 . 4 54 Melee 29 | . . . . . 29 Ram 1 | . . . . . 1 Kick 7 | . 1 . . . 6 Crush 5 | . 1 3 . . 1 Escape Stasis . | . . . . . . Rewire . | . . . . . . Trap . | . . . . . . Miscellaneous . | . . . . . . Route ------- -11/Scrapyard -10/Materials (discovered 4 exits: [*Mat x2] / *Min x2) -10/Mines -10/Exiles -9/Mines -8/Materials (discovered 1 exit: [*Fac]) History --------- Turn | Location | Event 1 | -11/Scrapyard | Discovered new exit (range 0) 1 | -11/Scrapyard | Entered Materials 158 | -10/Materials | Discovered new exit (range 7) 305 | -10/Materials | Build established: Mutant 716 | -10/Materials | Discovered new exit (range 12) 750 | -10/Materials | Discovered new exit (range 14) 841 | -10/Materials | Identified exit to Mines 870 | -10/Materials | Discovered new exit (range 4) 1444 | -10/Materials | Entered Mines 1453 | -10/Mines | Met a Derelict shopkeep closing up shop 1458 | -10/Mines | Met a Derelict bent on vengeance 1501 | -10/Mines | Assembled infested the area 1561 | -10/Mines | Learned location of Zion (-6) 1605 | -10/Mines | Build established: Scavenger-Mutant 1751 | -10/Mines | Crushed by falling debris 1751 | -10/Mines | Core integrity fell below 50% 1753 | -10/Mines | Core integrity fell below 20% 1834 | -10/Mines | Deemed a non-threat by the Exiles lab entrance 1834 | -10/Mines | Discovered new exit (range 6) 1845 | -10/Mines | Entered Exiles 1887 | -10/Exiles | Met 8R-AWN 1913 | -10/Exiles | Met EX-HEX 1975 | -10/Exiles | Build established: Mutant 1991 | -10/Exiles | Met EX-DEC 2047 | -10/Exiles | Discovered new exit (range 14) 2185 | -10/Exiles | Met EX-BIN 2207 | -10/Exiles | Aligned with FarCom system 2209 | -10/Exiles | Given EX-Vault access code 2253 | -10/Exiles | Opened EX-Vault 2278 | -10/Exiles | Found Prototype Processor 2311 | -10/Exiles | Warned to stay clear of 0b10 Research branches 2426 | -10/Exiles | Left Exiles lab with 0b10 Alert Chip 2426 | -10/Exiles | Entered Mines 2652 | -9/Mines | Learned Materials stockpile data 2670 | -9/Mines | Received a Rocket Launcher from a helpful Derelict 2932 | -9/Mines | Discovered new exit (range 12) 3027 | -9/Mines | Entered Materials 3027 | -8/Materials | Evolved 4 slots: Propulsion x1, Utility x3 3028 | -8/Materials | Identified 0b10 Alert Chip 4425 | -8/Materials | Lost 12 parts (2p4n2u4w) 4441 | -8/Materials | Core integrity fell below 50% 4468 | -8/Materials | Lost 3 parts (1p2n) 4488 | -8/Materials | Discovered new exit (range 9) 4772 | -8/Materials | Core integrity fell below 20% 4774 | -8/Materials | Self-destructed Last Messages --------------- Operator tracking enabled and active. 04724_ K-01 Serf cleans the Atomic Centrifuge. 04734_ Connecting with Terminal... 04734_ ALERT: Suspicious activity at Terminal M011. Dispatching Investigation squad. 04746_ ALERT: Suspicious intruders detected, dispatching Specialist reinforcements to area. 04749_ Critical hit (Burn: +37). 04752_ Purification Channel disabled. 04755_ Cesium-ion Thruster destroyed. 04758_ K-01 Serf collects debris. 04758_ Hrd. Medium Armor Plating destroyed. 04761_ Cesium-ion Thruster destroyed. 04762_ K-01 Serf collects debris. 04766_ Terminal disabled. 04768_ Hvy. Flail destroyed. 04768_ Shock Rifle destroyed. 04770_ K-01 Serf collects debris. 04770_ Slammed into X-57 Shotgunner. 04770_ Destabilizing: System corrupted (+2). Map ----- +----------------------------------------------------+ | ??????????????? # % | | ??????????????? # !! | | ??????????????? # !! | | ??????????????? ############### ########### | | ??????????????? ############### ########### | | ????????????????############### ###??###??## | | ????????????????## + ##?#????#?## | | ????????????????## """ # ##?#???#??## | | ???????? ?????## """ # ##????#?#??? | | ????????## ?????## """ # # ????????#? | | ???????? # ?????## # # ????????## | | ???????? # #####+############ # ? ?? ???#? | | ???????? # ##### ############ # ?????????? | | ???????? # ##### + ?????????? | | ?? + ##### # ?????????? | | ??? # "" ## # ?????????? | | ???????? # ##### " % G"## # ?????????? | | ???????? # ##### """ "" ## # ?????????? | | ???????? + ???##" """ ##### ##?????????? | | ??????????????##" """ ##### ##?????????? | | ??????????????##" "" "##?? ##?????????? | | ??????????????##T u """ ##????????????????? | | ??????????????##" k "" "##????????????????? | | ??????????????##" " ###????????????????? | | ??????????????##" gxx #??????????????????? | | ??????????????### g@ #??????????????????? | | ??????????????? # g #?????H????????????? | | ??????????????? # ???????????????? | | ??????????????? # ##########! ???????????? | | ??????????????? # # ??????????##??????????? | | ??????????????? + + ???????????????????????? | | ?????????????? # #"???????????????????????? | | ?????????????#### #????????????????????????? | | ????????????????# #????????????????Y???????? | | ???????????????? #????????????????????????? | | ??????????Y????? #????????????????????????? | | ??????????????? ?????????????????????????? | | ??????????????? ?????????????????????????? | | ??????????????! !?????????????????????????? | | ???????????????? !?????????????????????????? | | ?????????????????????????????????????????????? | | ?????????????????????????????????????????????? | | ?????????????????????????????????????????????? | | ?????????????????????????????????????????????? | | ?????????????????????????????????????????????? | | ?????????????????????????????????????????????? | | ?????????????????????????????????????????????? | | ?????????????????????????????????????????????? | | ?????????????????????????????????????????????? | | ?????????????????????????????????????????????? | +----------------------------------------------------+ Best States ------------- Heat Dissipation 39 Energy Generation 14 Energy Capacity 265 Matter Stores 300 Matter Capacity 300 Sight Range 16 Terrain Scan Range 14 Terrain Scan Density 85 Armor Coverage 600 Power Shielding 33 Utility Shielding 33 Evasion (%) 55 Recoil Reduction 3 Defensive Hacking 10 Item Schematics ----------------- Hacking Suite | -8/Materials | Hacked Robot Schematics ------------------ None Fabricated ------------ Nothing Alien Tech Used ----------------- None Achievements -------------- None Challenges ------------ None Game ------ Seed PowerLinkedDiverter Manual? 0 Play Time 01:03:17 Cumulative 96.4 hours Start 2022.05.11 @ 21:49:19 End 2022.05.12 @ 14:19:40 Sessions 3 Manual Loads 0 Difficulty Rogue Special Mode None Game No. 100 Rogue 100 Adventurer 0 Explorer 0 Win Type - Total 0 Types 0/0/0/0/0/0/0/0/0 Lore% 26 Gallery% 36 Achievement% 30 Wizard Run 0 Options --------- ASCII 0 Keyboard 0 Movement Numpad Keybinds 0 Fullscreen 2 Font 18/Smallcaps Map View 76x50 Tactical HUD 1 Map Filters NONE Filters NONE Steam 1 RUN: 1953f652-89a4-4b9f-a091-3a396d392872